Cogmind - Beta 12 @@@ ROGUE MODE // 2023.09.15 @ 12:15:36 Player: BlueKanary Result: Destroyed by D-53 Grenadier with Mini Grenade Launcher Performance ------------- Evolutions (0) 0 Regions Visited (2) 400 Robots Destroyed (4) 20 Value Destroyed (40) 40 Prototype IDs (0) 0 Alien Tech Used (0) 0 Bonus (0) 0 TOTAL SCORE: 460 Bonus ------- None Cogmind --------- Core Integrity 0/250 Matter 300/300 Energy 100/100 System Corruption 0% Temperature Cool (0) Movement Core (1350) Ox26 Location -10/Mines Parts ------- > --- POWER (1) -------- (None) > --- PROPULSION (2) --- (None) > --- UTILITY (2) ------ Huge Storage Unit Structural Scanner > --- WEAPON (2) ------- (None) > --- INVENTORY (25) --- Light Ion Engine Light Ion Engine Light Treads Aluminum Leg Aluminum Leg Flight Unit Flight Unit Flight Unit Small Storage Unit Medium Matter Pod (0) Medium Matter Pod (0) Medium Matter Pod (0) Terrain Scanner Beam Cannon Light Assault Rifle Light Assault Rifle Light Assault Rifle Light Cannon Grenade Launcher Peak State ------------ > --- POWER ------------ Light Ion Engine > --- PROPULSION ------- Light Treads Light Treads > --- UTILITY ---------- Small Storage Unit Huge Storage Unit > --- WEAPON ----------- Assault Rifle Assault Rifle > --- INVENTORY -------- Light Ion Engine Light Ion Engine Light Ion Engine Light Treads Aluminum Leg Aluminum Leg Flight Unit Flight Unit Flight Unit Medium Matter Pod Medium Matter Pod Medium Matter Pod Structural Scanner Terrain Scanner Beam Cannon Light Assault Rifle Light Assault Rifle Light Assault Rifle Light Cannon Grenade Launcher [Rating: 9] Favorites ----------- Power Light Ion Engine Engine Light Ion Engine Propulsion Light Treads Treads Light Treads Leg Aluminum Leg Utility Huge Storage Unit Device Structural Scanner Storage Huge Storage Unit Weapon Assault Rifle Ballistic Gun Assault Rifle Build | -11 -10 -10 ------- Run | Jun Mat Min Slots Evolved . | . . . Power . | . . . Propulsion . | . . . Utility . | . . . Weapon . | . . . Parts Attached 13 | 6 5 2 Power 2 | 1 . 1 Engine 2 | 1 . 1 Core . | . . . Reactor . | . . . Propulsion 6 | 2 4 . Treads 4 | . 4 . Leg 2 | 2 . . Wheel . | . . . Hover . | . . . Flight . | . . . Utility 3 | 1 1 1 Device 1 | . . 1 Storage 2 | 1 1 . Processor . | . . . Hackware . | . . . Protection . | . . . Artifact . | . . . Weapon 2 | 2 . . Energy Gun . | . . . Energy Cannon . | . . . Ballistic Gun 2 | 2 . . Ballistic Cannon . | . . . Launcher . | . . . Special Weapon . | . . . Impact Weapon . | . . . Slashing Weapon . | . . . Piercing Weapon . | . . . Special Melee Weapon . | . . . Unidentified Prototypes . | . . . Parts Lost 6 | . . 6 Power 2 | . . 2 Propulsion 2 | . . 2 Utility . | . . . Weapon 2 | . . 2 Highest Loss Streak 6 | . . 6 To Critical Strikes . | . . . Average Slot Usage (%) 97 | . 97 97 Engine 13 | . 14 13 Treads 26 | . 23 27 Leg 1 | . 4 . Device 7 | . . 10 Storage 20 | . 25 17 Ballistic Gun 27 | . 28 26 Naked Turns . | . . . Heaviest Build 92 | 12 92 92 Greatest Support 40 | 20 40 40 Greatest Overweight (x) 26 | 3 2 26 Average Overweight (x) 1 | . 1 2 Largest Inventory Capacity 25 | 8 25 25 Average Capacity 22 | 7 21 25 Most Carried 20 | 5 11 20 Average Carried 14 | 2 6 19 Final Capacity 25 | 8 25 25 Final Carried 19 | 3 11 19 Class Distribution -------------------- 100% | Mutant Dominant Class ---------------- Mutant | -10/Materials Mutant | -10/Mines Resources | -11 -10 -10 ----------- Run | Jun Mat Min Matter Collected 342 | 255 . 87 Remotely . | . . . Salvage Created 57 | . 12 45 Parts 6 | . . 6 Haulers Intercepted . | . . . Recyclers Shooed . | . . . Parts Field Recycled . | . . . Retrieved Matter . | . . . Parts Self-Destructed . | . . . Prevented . | . . . Kills | -11 -10 -10 ------- Run | Jun Mat Min Combat Hostiles Destroyed 4 | . 1 3 Guns 4 | . 1 3 Classes Destroyed 1 | . 1 . Swarmer 4 | . 1 3 Best Kill Streak 3 | . 1 3 Combat Bots Only 3 | . 1 3 Max Kills in Single Turn 1 | . 1 1 Gunslinging . | . . . Exploded . | . . . Melee . | . . . Uniques/NPCs Destroyed . | . . . Combat | -11 -10 -10 -------- Run | Jun Mat Min Damage Taken 873 | . 83 790 Core 271 | . . 271 Absorbed by Shields . | . . . Core Remaining (%) 100 | 100 . . Volleys Fired 7 | . 4 3 Largest 2 | . 2 2 Hottest 40 | . 40 40 Shots Fired 14 | . 8 6 Gun 14 | . 8 6 Cannon . | . . . Launcher . | . . . Special . | . . . Kinetic 14 | . 8 6 Thermal . | . . . Explosive . | . . . Electromagnetic . | . . . Robot Hit Streak 1 | . 1 1 Robot Miss Streak 3 | . 3 2 Penetration Max . | . . . Secondary Targets 1 | . . 1 Max Gunslinging Chain 1 | . . 1 Shots Hit Robots 5 | . 3 2 Core Hits 4 | . 1 3 Critical Kills . | . . . Critical Parts Destroyed . | . . . Critical Strikes . | . . . Melee Attacks . | . . . Impact . | . . . Slashing . | . . . Piercing . | . . . Sneak Attacks . | . . . Combat Hostiles . | . . . Follow-up Attacks . | . . . Damage Inflicted 88 | . 52 36 Guns 88 | . 52 36 Cannons . | . . . Explosions . | . . . Melee . | . . . Ramming . | . . . Kinetic 88 | . 52 36 Thermal . | . . . Explosive . | . . . Electromagnetic . | . . . Impact . | . . . Slashing . | . . . Piercing . | . . . Highest Corruption . | . . . Average Corruption . | . . . Corruption Purged . | . . . Corruption Blocked . | . . . Overload Shots . | . . . Overflow Damage . | . . . Projectiles . | . . . Explosions . | . . . Melee . | . . . Knockbacks . | . . . Impact . | . . . Kinetic . | . . . Secondary . | . . . Self-Inflicted Damage . | . . . Shots . | . . . Rammed . | . . . Targets Rammed . | . . . Kicked . | . . . Crushed . | . . . Highest Temperature . | . . . Average Temperature . | . . . Received Heat Transfer . | . . . Siege Activations . | . . . Robots Corrupted . | . . . Combat Hostiles . | . . . Parts Fried . | . . . Impact Corruptions . | . . . Robots Melted . | . . . Combat Hostiles . | . . . Parts Melted . | . . . Heat Transferred . | . . . Parts Sabotaged . | . . . Parts Stolen . | . . . Parts Stripped . | . . . Power Chain Reactions . | . . . Missiles Intercepted . | . . . Alert | -11 -10 -10 ------- Run | Jun Mat Min Peak Influence 81 | . 30 81 Initial 11 | . . 11 Average 36 | . 4 53 Maximum Alert Level . | . . . Low Security (%) 100 | 100 100 100 Level 1 . | . . . Level 2 . | . . . Level 3 . | . . . Level 4 . | . . . Level 5 . | . . . High Security . | . . . Max Security . | . . . Squads Dispatched . | . . . Investigation . | . . . Extermination . | . . . Reinforcement . | . . . Assault . | . . . Garrison . | . . . Intercept . | . . . Searches Triggered . | . . . Construction Impeded . | . . . Haulers Reinforced . | . . . Active Scanning Responses . | . . . Cargo Convoy Interrupts . | . . . Stealth | -11 -10 -10 --------- Run | Jun Mat Min Distress Signals . | . . . Communications Jammed . | . . . Distress Signals . | . . . Times Spotted 17 | . 4 13 Peak Tracking Total 11 | . 1 11 Tactical Retreats 1 | . . 1 Traps | -11 -10 -10 ------- Run | Jun Mat Min Traps Triggered . | . . . Indirectly . | . . . Trap Hack Attempts . | . . . Triggered . | . . . Disarmed . | . . . Reprogrammed . | . . . Reused . | . . . Traps Extracted . | . . . Installed . | . . . Triggered . | . . . Machines | -11 -10 -10 ---------- Run | Jun Mat Min Machines Disabled . | . . . Max in Single Turn . | . . . Machines Repaired . | . . . Machines Sabotaged . | . . . Overloaded Fab Kills . | . . . Hacking | -11 -10 -10 --------- Run | Jun Mat Min Machines Accessed . | . . . Terminals . | . . . Fabricators . | . . . Repair Stations . | . . . Recycling Units . | . . . Scanalyzers . | . . . Garrison Access . | . . . Total Hacks . | . . . Successful . | . . . Failed . | . . . Catastrophic . | . . . Database Lockouts . | . . . Manual . | . . . Terminals . | . . . Fabricators . | . . . Repair Stations . | . . . Recycling Units . | . . . Scanalyzers . | . . . Garrison Access . | . . . Terminal Hacks . | . . . Fabricator Hacks . | . . . Repair Station Hacks . | . . . Recycling Unit Hacks . | . . . Scanalyzer . | . . . Garrison Access Hacks . | . . . Unauthorized Hacks . | . . . Terminals . | . . . Fabricators . | . . . Repair Stations . | . . . Recycling Units . | . . . Scanalyzers . | . . . Garrison Access . | . . . Data Cores Recovered . | . . . Used . | . . . Hacking Detections . | . . . Full Trace Events . | . . . Feedback Events . | . . . Feedback Blocked . | . . . Robot Schematics Acquired . | . . . Robots Built . | . . . Authchips . | . . . Time . | . . . Total Robot Build Rating . | . . . Part Schematics Acquired . | . . . Parts Built . | . . . Authchips . | . . . Time . | . . . Total Part Build Rating . | . . . Parts Repaired . | . . . Time . | . . . Parts Recycled . | . . . Recycled Matter . | . . . Retrieved Matter . | . . . Retrieved Components . | . . . Parts Scanalyzed . | . . . Part Schematics Acquired . | . . . Parts Damaged . | . . . Bothacking | -11 -10 -10 ------------ Run | Jun Mat Min Used RIF Installer . | . . . Robots Hacked . | . . . Non-combat . | . . . Combat . | . . . Robot Hacks Applied . | . . . Relay Couplers Released . | . . . Fabnet Peak Effective % . | . . . Robots Rewired . | . . . Allies Hacked . | . . . Hacks Repelled . | . . . Allies | -11 -10 -10 -------- Run | Jun Mat Min Total Allies . | . . . Largest Group . | . . . Highest-Rated Group . | . . . Highest-Rated Ally . | . . . Total Orders . | . . . Ally Attacks . | . . . Total Damage . | . . . Kills . | . . . Allies Corrupted . | . . . Allies Melted . | . . . Intel | -11 -10 -10 ------- Run | Jun Mat Min Robot Analysis Total . | . . . Derelict Logs Recovered 1 | . . 1 Drone Launches . | . . . Drone Recoveries . | . . . Exploration | -11 -10 -10 ------------- Run | Jun Mat Min Turns Passed 913 | 69 242 602 Spaces Moved 311 | 45 89 177 Core 26 | 24 . 2 Treads 230 | . 55 175 Legs 55 | 21 34 . Wheels . | . . . Hover . | . . . Flight . | . . . Fastest Speed 50 | 50 120 320 Average Speed 275 | 119 243 331 Slowest Speed 1350 | 200 320 1350 Overloaded Moves . | . . . Propulsion Burnouts . | . . . Robots Hopped . | . . . Cave-ins Triggered . | . . . Exploration Rate (%) 24 | 4 17 53 Regions Visited 2 Branch Regions 1 Pre-discovered Areas . | . . . Known Exits Taken . | . . . Unknown Exits Taken 2 | 1 1 . Scrap Searched 2 | . . 2 Spaces Dug . | . . . Terrain Destroyed . | . . . Melee . | . . . Projectile . | . . . AOE . | . . . Terrain Rammed . | . . . Walls Destroyed . | . . . Machines Disabled . | . . . Actions | -11 -10 -10 --------- Run | Jun Mat Min Total 363 | 61 106 196 Wait 5 | . . 5 Move 309 | 44 88 177 Hop . | . . . Pick Up 28 | 10 9 9 Fast Attach . | . . . Attach 8 | 6 1 1 Detach . | . . . Swap 5 | . 4 1 Drop 1 | 1 . . Fire 7 | . 4 3 Melee . | . . . Ram . | . . . Kick . | . . . Crush . | . . . Escape Stasis . | . . . Rewire . | . . . Trap . | . . . Miscellaneous . | . . . Route ------- -11/Junkyard -10/Materials -10/Mines History --------- Turn | Location | Event 23 | -11/Junkyard | Discovered new exit (range 14) 70 | -11/Junkyard | Entered Materials 223 | -10/Materials | Discovered new exit (range 15) 311 | -10/Materials | Build established: Mutant 312 | -10/Materials | Entered Mines 740 | -10/Mines | Learned location of 1 exit from Materials 872 | -10/Mines | Assembled infested the area 877 | -10/Mines | Assisted by a Guerilla fighting off Assembled 900 | -10/Mines | Core integrity fell below 50% 911 | -10/Mines | Core integrity fell below 20% 914 | -10/Mines | Destroyed by D-53 Grenadier with Mini Grenade Launcher Last Messages --------------- 00883_ Assault Rifle destroyed. 00885_ Laser Drill disabled. 00885_ HV Slug penetrates as-69562. 00885_ as-69562 suffers critical hit (Destroy). 00888_ KX-EL9(h) destroyed. 00892_ as-97824 destroyed. 00892_ as-69562 destroyed. 00893_ The unstable cave ceiling collapses. 00894_ as-83452 destroyed. 00895_ as-36776 destroyed. 00896_ The unstable cave ceiling collapses. 00896_ Lgt. Treads destroyed. 00896_ as-34925 destroyed. 00897_ Lgt. Treads destroyed. 00898_ The unstable cave ceiling collapses. 00898_ Assault Rifle destroyed. 00898_ Lgt. Ion Engine destroyed. 00900_ The unstable cave ceiling collapses. 00905_ as-79469 destroyed. 00906_ The unstable cave ceiling collapses. Map ----- +----------------------------------------------------+ | ?????????????????????????????????????????????????? | | ?????????????????????????????????????????????????? | | ?????????????????????????????????????????????????? | | ?????????????????????????????????????????????????? | | ?????????????????????????????????????????????????? | | ?????????????????????????????????????????????????? | | ?????????????????????????????????????????????????? | | ?????????????????????????????????????????????????? | | ?????????????????????????????????????????????????? | | ?????????????????????????????????????????????????? | | ?????????????????????????????????????????????????? | | ?????????????????????????????????????????????????? | | ?????????????????????????????????????????????????? | | ?????????????????????????????????????????????????? | | ?????????????????????????????????????????????????# | | ????????????????????######???????????????????????# | | ???????????????????########??######?????????????## | | ????????????###??##### ###########?????????????# | | ??????????########### ##### ###????????????# | | ??????????# # #### ## ####???????????## | | ????????### # # ###????????????# | | ????????"# " ##????????????# | | ???????? ##????????????# | | ????????% ! ##????????????# | | ????????# # ##???????????? | | ????????## # d d @ ###?????????????????? | | ????????## ## # ##??????????????????? | | ????????## # ##??????????????????? | | ???????? # # # # ###??????????????????? | | ????????? # ####??????????????????? | | ?????????? ### ######???????????????????? | | ??????? # % ####### ##?????????????? | | ?????? "% ###### ##?????????????? | | ????# ##?????????????? | | ????## ##?????????????? | | ????####### ##########?????????????? | | ?????####### ## ##########?????????????? | | ?????????### ## #########?????????????# | | ?????????## ### #########?????????????# | | ????????? ?####### ??????? | | ????????? ??####### #########?????????????# | | ???????? ? ##### #########????????????## | | ??????????#### ??## ##### ##??????????????????### | | ??????????#####??## ###?????????????????### | | ?????????????????######## ######?????????????### | | ?????????????????######## ######?????????###### | | ?????????????????????### ###????????###### | | ????????????????????#### ###???????### | | ???????????????######## ####?????### | | ??????????????######## ###????#### | +----------------------------------------------------+ Best States ------------- Heat Dissipation 25 Energy Generation 10 Energy Capacity 125 Matter Stores 300 Matter Capacity 300 Sight Range 16 Terrain Scan Density 10 Evasion (%) 55 Recoil Reduction 2 Item Schematics ----------------- None Robot Schematics ------------------ None Fabricated ------------ Nothing Alien Tech Used ----------------- None Achievements -------------- None Challenges ------------ None Game ------ Seed MagneticBottomlessTearclaws Manual? 0 Play Time 00:09:39 Cumulative 17.9 hours Start 2023.09.15 @ 12:06:59 End 2023.09.15 @ 12:15:36 Sessions 1 Manual Loads 0 Difficulty Rogue Special Mode None Game No. 22 Rogue 22 Adventurer 0 Explorer 0 Win Type - Total 0 Types 0/0/0/0/0/0/0/0/0 Lore% 20 Gallery% 25 Achievement% 24 Wizard Run 0 Options --------- ASCII 0 Keyboard 1 Movement Vi Keybinds 0 Fullscreen 2 Font 18/SmallcapsGlow Map View 76x50 Tactical HUD 1 Map Filters NONE Filters NONE Steam X RUN: a574e395-3a9c-4608-9517-b22c13a78c2e